[Event "Titled Tuesday Blitz November 29 Early 2022"]
[White "Mohammed, Zozek Salah Mohammed"]
[Black "Fernandez Hernandez, Gerardo"]
[WhiteFideId "4803361"]
[BlackFideId "2207400"]
[WhiteElo "2199"]
[BlackElo "2213"]
[Result "1-0"]
[Round "09"]
[TimeControl "180+1"]
[Date "2022.11.30"]
[WhiteClock "0:01:05"]
[BlackClock "0:00:01"]

1. d4 {[%clk 0:02:59]}  Nf6 {[%clk 0:02:11]} 2. c4 {[%clk 0:02:57]}  c5 {[%clk 0:02:10]} 3. Nf3 {[%clk 0:02:58]}  cxd4 {[%clk 0:02:10]} 4. Nxd4 {[%clk 0:02:58]}  e5 {[%clk 0:02:10]} 5. Nc2 {[%clk 0:02:57]}  d5 {[%clk 0:02:10]} 6. e3 {[%clk 0:02:53]}  Nc6 {[%clk 0:02:05]} 7. Be2 {[%clk 0:02:52]}  Be6 {[%clk 0:02:04]} 8. O-O {[%clk 0:02:50]}  dxc4 {[%clk 0:02:01]} 9. Nba3 {[%clk 0:02:49]}  c3 {[%clk 0:01:52]} 10. bxc3 {[%clk 0:02:41]}  Bc5 {[%clk 0:01:51]} 11. Nc4 {[%clk 0:02:38]}  O-O {[%clk 0:01:37]} 12. Ba3 {[%clk 0:02:37]}  Qe7 {[%clk 0:01:13]} 13. Bxc5 {[%clk 0:02:31]}  Qxc5 {[%clk 0:01:14]} 14. N4a3 {[%clk 0:02:12]}  Ne4 {[%clk 0:01:05]} 15. c4 {[%clk 0:02:06]}  Rfd8 {[%clk 0:01:00]} 16. Qe1 {[%clk 0:02:07]}  Nd2 {[%clk 0:00:55]} 17. Rd1 {[%clk 0:02:00]}  Nxf1 {[%clk 0:00:54]} 18. Bxf1 {[%clk 0:01:58]}  Rxd1 {[%clk 0:00:53]} 19. Qxd1 {[%clk 0:01:59]}  Rd8 {[%clk 0:00:52]} 20. Qf3 {[%clk 0:01:57]}  b6 {[%clk 0:00:38]} 21. h3 {[%clk 0:01:56]}  h6 {[%clk 0:00:36]} 22. Nb5 {[%clk 0:01:47]}  Rd2 {[%clk 0:00:33]} 23. Nca3 {[%clk 0:01:40]}  Rxa2 {[%clk 0:00:31]} 24. g4 {[%clk 0:01:38]}  a6 {[%clk 0:00:24]} 25. Bg2 {[%clk 0:01:33]}  axb5 {[%clk 0:00:21]} 26. cxb5 {[%clk 0:01:32]}  Rxa3 {[%clk 0:00:18]} 27. bxc6 {[%clk 0:01:33]}  Ra1+ {[%clk 0:00:16]} 28. Kh2 {[%clk 0:01:32]}  Rc1 {[%clk 0:00:15]} 29. Qe4 {[%clk 0:01:31]}  f6 {[%clk 0:00:14]} 30. Qg6 {[%clk 0:01:30]}  Qe7 {[%clk 0:00:12]} 31. Qd3 {[%clk 0:01:25]}  Rc5 {[%clk 0:00:08]} 32. Qa6 {[%clk 0:01:24]}  Kf7 {[%clk 0:00:08]} 33. Qxb6 {[%clk 0:01:24]}  Rc4 {[%clk 0:00:07]} 34. Qb5 {[%clk 0:01:22]}  Qd6 {[%clk 0:00:06]} 35. Qb7+ {[%clk 0:01:22]}  Qe7 {[%clk 0:00:07]} 36. Qb5 {[%clk 0:01:22]}  Qc5 {[%clk 0:00:06]} 37. Qb7+ {[%clk 0:01:19]}  Qe7 {[%clk 0:00:05]} 38. Qb8 {[%clk 0:01:19]}  Rc5 {[%clk 0:00:04]} 39. Qh8 {[%clk 0:01:17]}  Bd5 {[%clk 0:00:03]} 40. Qc8 {[%clk 0:01:12]}  Bxg2 {[%clk 0:00:03]} 41. Kxg2 {[%clk 0:01:13]}  Qd6 {[%clk 0:00:03]} 42. Qb7+ {[%clk 0:01:12]}  Kg6 {[%clk 0:00:03]} 43. e4 {[%clk 0:01:08]}  Qxc6 {[%clk 0:00:03]} 44. Qb1 {[%clk 0:01:07]}  Rc2 {[%clk 0:00:02]} 45. Qe1 {[%clk 0:01:05]}  Qc5 {[%clk 0:00:02]} 46. h4 {[%clk 0:01:04]}  Qd4 {[%clk 0:00:02]} 47. Kg3 {[%clk 0:01:04]}  Qd3+ {[%clk 0:00:02]} 48. f3 {[%clk 0:01:04]}  Qe2 {[%clk 0:00:01]} 49. h5+ {[%clk 0:01:05]} 1-0


[Site "https://www.chess.com"]

[Event "Titled Tuesday Blitz November 29 Early 2022"]
[White "Mrudul Dehankar"]
[Black "Adnan, Habib"]
[WhiteFideId "25096990"]
[BlackFideId "11202270"]
[WhiteElo "2068"]
[BlackElo "2110"]
[Result "1-0"]
[Round "09"]
[TimeControl "180+1"]
[Date "2022.11.30"]
[WhiteClock "0:00:03"]
[BlackClock "0:00:17"]

1. e4 {[%clk 0:03:00]}  d5 {[%clk 0:02:56]} 2. exd5 {[%clk 0:02:59]}  Nf6 {[%clk 0:02:53]} 3. Nc3 {[%clk 0:02:56]}  Nxd5 {[%clk 0:02:51]} 4. Bc4 {[%clk 0:02:55]}  c6 {[%clk 0:02:44]} 5. Qf3 {[%clk 0:02:53]}  Nf6 {[%clk 0:02:43]} 6. Nge2 {[%clk 0:02:51]}  Bg4 {[%clk 0:02:42]} 7. Qg3 {[%clk 0:02:50]}  e6 {[%clk 0:02:42]} 8. h3 {[%clk 0:02:46]}  Bh5 {[%clk 0:02:41]} 9. d4 {[%clk 0:02:44]}  Bg6 {[%clk 0:02:37]} 10. Bb3 {[%clk 0:02:44]}  Bd6 {[%clk 0:02:34]} 11. Qf3 {[%clk 0:02:38]}  Nbd7 {[%clk 0:02:29]} 12. Ng3 {[%clk 0:02:30]}  O-O {[%clk 0:02:20]} 13. Bg5 {[%clk 0:02:12]}  Qa5 {[%clk 0:02:10]} 14. Bd2 {[%clk 0:02:06]}  Qc7 {[%clk 0:02:09]} 15. Nge4 {[%clk 0:01:58]}  Nxe4 {[%clk 0:02:05]} 16. Nxe4 {[%clk 0:01:56]}  Bxe4 {[%clk 0:02:05]} 17. Qxe4 {[%clk 0:01:56]}  c5 {[%clk 0:02:00]} 18. c3 {[%clk 0:01:45]}  cxd4 {[%clk 0:01:52]} 19. cxd4 {[%clk 0:01:43]}  Nf6 {[%clk 0:01:50]} 20. Qh4 {[%clk 0:01:41]}  Be7 {[%clk 0:01:34]} 21. O-O {[%clk 0:01:35]}  Rfd8 {[%clk 0:01:27]} 22. Rac1 {[%clk 0:01:30]}  Qb6 {[%clk 0:01:22]} 23. Bc3 {[%clk 0:01:24]}  Nd5 {[%clk 0:01:16]} 24. Qe4 {[%clk 0:01:21]}  Bf6 {[%clk 0:01:09]} 25. Bc2 {[%clk 0:01:15]}  g6 {[%clk 0:01:07]} 26. Bb1 {[%clk 0:01:15]}  Bg7 {[%clk 0:01:05]} 27. h4 {[%clk 0:01:11]}  Ne7 {[%clk 0:01:04]} 28. h5 {[%clk 0:01:08]}  Rd5 {[%clk 0:00:57]} 29. hxg6 {[%clk 0:01:06]}  hxg6 {[%clk 0:00:57]} 30. Rfe1 {[%clk 0:00:59]}  Rad8 {[%clk 0:00:50]} 31. Rcd1 {[%clk 0:00:54]}  Nf5 {[%clk 0:00:47]} 32. Rd2 {[%clk 0:00:15]}  Nxd4 {[%clk 0:00:41]} 33. Red1 {[%clk 0:00:15]}  e5 {[%clk 0:00:40]} 34. a3 {[%clk 0:00:08]}  R5d6 {[%clk 0:00:37]} 35. Ba2 {[%clk 0:00:07]}  Kf8 {[%clk 0:00:32]} 36. Bb4 {[%clk 0:00:07]}  f5 {[%clk 0:00:26]} 37. Bxd6+ {[%clk 0:00:06]}  Rxd6 {[%clk 0:00:26]} 38. Qd3 {[%clk 0:00:05]}  Bh6 {[%clk 0:00:22]} 39. Qc4 {[%clk 0:00:03]}  Bxd2 {[%clk 0:00:17]} 40. Qf7# {[%clk 0:00:03]} 1-0


[Site "https://www.chess.com"]

[Event "Titled Tuesday Blitz November 29 Early 2022"]
[White "Nepo"]
[Black "Buscar, Michael"]
[BlackFideId "2603616"]
[WhiteElo "2152"]
[BlackElo "2010"]
[Result "1-0"]
[Round "09"]
[TimeControl "180+1"]
[Date "2022.11.30"]
[WhiteClock "0:00:32"]
[BlackClock "0:00:01"]

1. e4 {[%clk 0:02:56]}  c6 {[%clk 0:02:58]} 2. d4 {[%clk 0:02:55]}  d6 {[%clk 0:02:58]} 3. Nc3 {[%clk 0:02:52]}  Nf6 {[%clk 0:02:56]} 4. Nf3 {[%clk 0:02:48]}  Bg4 {[%clk 0:02:56]} 5. h3 {[%clk 0:02:47]}  Bh5 {[%clk 0:02:55]} 6. Be2 {[%clk 0:02:48]}  Nbd7 {[%clk 0:02:54]} 7. O-O {[%clk 0:02:48]}  e5 {[%clk 0:02:54]} 8. dxe5 {[%clk 0:02:47]}  dxe5 {[%clk 0:02:54]} 9. Nh4 {[%clk 0:02:43]}  Bg6 {[%clk 0:02:48]} 10. Bg5 {[%clk 0:02:42]}  Be7 {[%clk 0:02:46]} 11. Nxg6 {[%clk 0:02:22]}  hxg6 {[%clk 0:02:43]} 12. Qd2 {[%clk 0:02:18]}  Nc5 {[%clk 0:02:36]} 13. Qe3 {[%clk 0:02:07]}  Qd4 {[%clk 0:02:14]} 14. Bf3 {[%clk 0:01:51]}  Ne6 {[%clk 0:02:08]} 15. Rfd1 {[%clk 0:01:48]}  Qb4 {[%clk 0:01:58]} 16. a3 {[%clk 0:01:39]}  Qa5 {[%clk 0:01:33]} 17. b4 {[%clk 0:01:32]}  Qc7 {[%clk 0:01:32]} 18. Bxf6 {[%clk 0:01:27]}  Bxf6 {[%clk 0:01:26]} 19. Ne2 {[%clk 0:01:26]}  Bg5 {[%clk 0:01:13]} 20. Qb3 {[%clk 0:01:24]}  O-O {[%clk 0:01:06]} 21. Bg4 {[%clk 0:01:23]}  Nd4 {[%clk 0:00:55]} 22. Nxd4 {[%clk 0:01:17]}  exd4 {[%clk 0:00:55]} 23. Rd3 {[%clk 0:01:15]}  Rfe8 {[%clk 0:00:35]} 24. Rxd4 {[%clk 0:01:05]}  Bf6 {[%clk 0:00:35]} 25. Rd7 {[%clk 0:01:05]}  Qxd7 {[%clk 0:00:22]} 26. Bxd7 {[%clk 0:01:05]}  Bxa1 {[%clk 0:00:23]} 27. Bxe8 {[%clk 0:01:04]}  Rxe8 {[%clk 0:00:23]} 28. f3 {[%clk 0:01:04]}  Bd4+ {[%clk 0:00:23]} 29. Kf1 {[%clk 0:01:02]}  Rd8 {[%clk 0:00:23]} 30. b5 {[%clk 0:01:01]}  cxb5 {[%clk 0:00:16]} 31. Qxb5 {[%clk 0:01:02]}  b6 {[%clk 0:00:17]} 32. Qa6 {[%clk 0:00:59]}  Bc5 {[%clk 0:00:14]} 33. Qxa7 {[%clk 0:00:59]}  Rd1+ {[%clk 0:00:15]} 34. Ke2 {[%clk 0:00:59]}  Rg1 {[%clk 0:00:15]} 35. Qb8+ {[%clk 0:00:57]}  Kh7 {[%clk 0:00:14]} 36. Qg3 {[%clk 0:00:57]}  Ra1 {[%clk 0:00:14]} 37. Qh4+ {[%clk 0:00:55]}  Kg8 {[%clk 0:00:14]} 38. Qd8+ {[%clk 0:00:55]}  Kh7 {[%clk 0:00:15]} 39. Qd5 {[%clk 0:00:55]}  f6 {[%clk 0:00:11]} 40. h4 {[%clk 0:00:49]}  Rxa3 {[%clk 0:00:10]} 41. h5 {[%clk 0:00:49]}  gxh5 {[%clk 0:00:10]} 42. Qxh5+ {[%clk 0:00:50]}  Kg8 {[%clk 0:00:09]} 43. Qe8+ {[%clk 0:00:50]}  Kh7 {[%clk 0:00:09]} 44. Qd7 {[%clk 0:00:48]}  Re3+ {[%clk 0:00:09]} 45. Kf1 {[%clk 0:00:49]}  Rc3 {[%clk 0:00:08]} 46. Qd2 {[%clk 0:00:48]}  Re3 {[%clk 0:00:05]} 47. Qd7 {[%clk 0:00:43]}  Kg6 {[%clk 0:00:05]} 48. Qf5+ {[%clk 0:00:43]}  Kf7 {[%clk 0:00:05]} 49. g4 {[%clk 0:00:41]}  g5 {[%clk 0:00:05]} 50. Qh7+ {[%clk 0:00:38]}  Ke6 {[%clk 0:00:05]} 51. Qg8+ {[%clk 0:00:39]}  Ke7 {[%clk 0:00:05]} 52. Qg7+ {[%clk 0:00:34]}  Ke6 {[%clk 0:00:06]} 53. Kg2 {[%clk 0:00:33]}  Re2+ {[%clk 0:00:06]} 54. Kg3 {[%clk 0:00:33]}  Re1 {[%clk 0:00:05]} 55. Qg8+ {[%clk 0:00:33]}  Ke7 {[%clk 0:00:04]} 56. Qh7+ {[%clk 0:00:33]}  Kd6 {[%clk 0:00:02]} 57. Qf5 {[%clk 0:00:32]}  Rg1+ {[%clk 0:00:01]} 58. Kh2 {[%clk 0:00:32]} 1-0


[Site "https://www.chess.com"]

[Event "Titled Tuesday Blitz November 29 Early 2022"]
[White "Oparin, Grigoriy"]
[Black "Mgeladze, Tamaz"]
[WhiteFideId "24125890"]
[BlackFideId "13601202"]
[WhiteElo "2639"]
[BlackElo "2288"]
[Result "1-0"]
[Round "09"]
[TimeControl "180+1"]
[Date "2022.11.29"]
[WhiteClock "0:01:08"]
[BlackClock "0:00:01"]

1. e4 {[%clk 0:02:56]}  c5 {[%clk 0:02:59]} 2. Nc3 {[%clk 0:02:56]}  g6 {[%clk 0:02:59]} 3. Nf3 {[%clk 0:02:53]}  Bg7 {[%clk 0:02:59]} 4. d4 {[%clk 0:02:54]}  cxd4 {[%clk 0:03:00]} 5. Nxd4 {[%clk 0:02:55]}  Nc6 {[%clk 0:03:00]} 6. Be3 {[%clk 0:02:56]}  Nf6 {[%clk 0:03:01]} 7. f3 {[%clk 0:02:55]}  O-O {[%clk 0:03:00]} 8. Qd2 {[%clk 0:02:56]}  d5 {[%clk 0:03:00]} 9. exd5 {[%clk 0:02:34]}  Nxd5 {[%clk 0:02:59]} 10. Nxc6 {[%clk 0:02:34]}  bxc6 {[%clk 0:02:59]} 11. Nxd5 {[%clk 0:02:34]}  cxd5 {[%clk 0:02:52]} 12. c3 {[%clk 0:02:34]}  e5 {[%clk 0:02:41]} 13. Be2 {[%clk 0:02:32]}  Be6 {[%clk 0:02:33]} 14. O-O {[%clk 0:02:32]}  a5 {[%clk 0:02:21]} 15. Rfd1 {[%clk 0:02:32]}  Qc7 {[%clk 0:02:15]} 16. a4 {[%clk 0:02:30]}  Rfd8 {[%clk 0:02:05]} 17. Bb5 {[%clk 0:02:30]}  Rac8 {[%clk 0:01:57]} 18. Qf2 {[%clk 0:02:28]}  Rb8 {[%clk 0:01:35]} 19. Rd2 {[%clk 0:02:27]}  f6 {[%clk 0:01:29]} 20. Rad1 {[%clk 0:02:26]}  Bf8 {[%clk 0:01:28]} 21. h4 {[%clk 0:02:23]}  Rdc8 {[%clk 0:01:23]} 22. f4 {[%clk 0:02:12]}  Bc5 {[%clk 0:01:15]} 23. fxe5 {[%clk 0:02:03]}  fxe5 {[%clk 0:01:16]} 24. h5 {[%clk 0:01:59]}  Rf8 {[%clk 0:01:06]} 25. Qg3 {[%clk 0:01:58]}  Bxe3+ {[%clk 0:01:02]} 26. Qxe3 {[%clk 0:01:59]}  Qb6 {[%clk 0:00:46]} 27. Re1 {[%clk 0:01:56]}  e4 {[%clk 0:00:35]} 28. hxg6 {[%clk 0:01:56]}  Qxe3+ {[%clk 0:00:33]} 29. Rxe3 {[%clk 0:01:55]}  hxg6 {[%clk 0:00:34]} 30. c4 {[%clk 0:01:54]}  dxc4 {[%clk 0:00:28]} 31. Rxe4 {[%clk 0:01:54]}  Bf7 {[%clk 0:00:19]} 32. Rd6 {[%clk 0:01:50]}  Kg7 {[%clk 0:00:13]} 33. Re7 {[%clk 0:01:48]}  Rbc8 {[%clk 0:00:09]} 34. Bc6 {[%clk 0:01:27]}  Kh6 {[%clk 0:00:07]} 35. Ra7 {[%clk 0:01:20]}  Bg8 {[%clk 0:00:04]} 36. Rxa5 {[%clk 0:01:16]}  Rcd8 {[%clk 0:00:05]} 37. Rxd8 {[%clk 0:01:12]}  Rxd8 {[%clk 0:00:05]} 38. Rb5 {[%clk 0:01:13]}  Rd1+ {[%clk 0:00:05]} 39. Kf2 {[%clk 0:01:13]}  Rb1 {[%clk 0:00:04]} 40. a5 {[%clk 0:01:11]}  Ra1 {[%clk 0:00:03]} 41. Bb7 {[%clk 0:01:09]}  Be6 {[%clk 0:00:02]} 42. a6 {[%clk 0:01:09]}  Bf5 {[%clk 0:00:01]} 43. Ke3 {[%clk 0:01:08]} 1-0


[Site "https://www.chess.com"]

[Event "Titled Tuesday Blitz November 29 Early 2022"]
[White "Oro, Faustino"]
[Black "Zhigalko, Sergei"]
[WhiteFideId "20000197"]
[BlackFideId "13502956"]
[WhiteElo "2066"]
[BlackElo "2662"]
[Result "0-1"]
[Round "09"]
[TimeControl "180+1"]
[Date "2022.11.29"]
[WhiteClock "0:00:05"]
[BlackClock "0:00:04"]

1. e4 {[%clk 0:03:00]}  c5 {[%clk 0:02:57]} 2. Nf3 {[%clk 0:03:00]}  Nc6 {[%clk 0:02:57]} 3. Bb5 {[%clk 0:02:59]}  Nf6 {[%clk 0:02:57]} 4. d3 {[%clk 0:02:54]}  Qa5+ {[%clk 0:02:57]} 5. Nc3 {[%clk 0:02:54]}  Nd4 {[%clk 0:02:57]} 6. Bc4 {[%clk 0:02:47]}  b5 {[%clk 0:02:57]} 7. Bb3 {[%clk 0:02:29]}  Nxb3 {[%clk 0:02:56]} 8. cxb3 {[%clk 0:02:27]}  d6 {[%clk 0:02:56]} 9. O-O {[%clk 0:02:26]}  e6 {[%clk 0:02:56]} 10. e5 {[%clk 0:02:04]}  dxe5 {[%clk 0:02:55]} 11. Nxe5 {[%clk 0:02:05]}  Bb7 {[%clk 0:02:55]} 12. Qe2 {[%clk 0:01:51]}  Be7 {[%clk 0:02:22]} 13. Bd2 {[%clk 0:01:48]}  O-O {[%clk 0:02:07]} 14. Nd5 {[%clk 0:01:39]}  Qd8 {[%clk 0:02:06]} 15. Nxe7+ {[%clk 0:01:38]}  Qxe7 {[%clk 0:02:06]} 16. Rac1 {[%clk 0:01:37]}  Rfd8 {[%clk 0:02:01]} 17. Bg5 {[%clk 0:01:30]}  Rd5 {[%clk 0:01:49]} 18. Bh4 {[%clk 0:01:20]}  Rad8 {[%clk 0:01:11]} 19. Rfd1 {[%clk 0:01:10]}  a6 {[%clk 0:00:55]} 20. Ng4 {[%clk 0:01:05]}  g5 {[%clk 0:00:54]} 21. Nxf6+ {[%clk 0:00:59]}  Qxf6 {[%clk 0:00:53]} 22. Bg3 {[%clk 0:01:00]}  Qf5 {[%clk 0:00:45]} 23. h3 {[%clk 0:00:50]}  f6 {[%clk 0:00:28]} 24. f3 {[%clk 0:00:28]}  h5 {[%clk 0:00:28]} 25. Bf2 {[%clk 0:00:27]}  Re5 {[%clk 0:00:26]} 26. Qf1 {[%clk 0:00:24]}  g4 {[%clk 0:00:25]} 27. hxg4 {[%clk 0:00:23]}  hxg4 {[%clk 0:00:26]} 28. fxg4 {[%clk 0:00:22]}  Qxg4 {[%clk 0:00:23]} 29. Rxc5 {[%clk 0:00:20]}  Rxc5 {[%clk 0:00:18]} 30. Bxc5 {[%clk 0:00:21]}  Rd5 {[%clk 0:00:19]} 31. d4 {[%clk 0:00:19]}  Rh5 {[%clk 0:00:11]} 32. Rd3 {[%clk 0:00:14]}  Kf7 {[%clk 0:00:10]} 33. Re3 {[%clk 0:00:10]}  Bd5 {[%clk 0:00:09]} 34. Qf2 {[%clk 0:00:09]}  Rg5 {[%clk 0:00:07]} 35. Re2 {[%clk 0:00:07]}  Qh3 {[%clk 0:00:05]} 36. Kf1 {[%clk 0:00:05]}  Rxg2 {[%clk 0:00:04]} 37. Qxg2 {[%clk 0:00:03]}  Bxg2+ {[%clk 0:00:05]} 38. Rxg2 {[%clk 0:00:04]}  Qd3+ {[%clk 0:00:04]} 39. Kg1 {[%clk 0:00:04]}  Qb1+ {[%clk 0:00:04]} 40. Kh2 {[%clk 0:00:05]}  Qxa2 {[%clk 0:00:04]} 41. b4 {[%clk 0:00:05]}  Qd5 {[%clk 0:00:04]} 42. Rf2 {[%clk 0:00:05]}  Qh5+ {[%clk 0:00:04]} 43. Kg3 {[%clk 0:00:06]}  Qg5+ {[%clk 0:00:04]} 44. Kf3 {[%clk 0:00:06]}  Qf5+ {[%clk 0:00:04]} 45. Ke3 {[%clk 0:00:07]}  Qd5 {[%clk 0:00:04]} 46. Rh2 {[%clk 0:00:07]}  Qb3+ {[%clk 0:00:04]} 47. Kf4 {[%clk 0:00:07]}  Qd3 {[%clk 0:00:04]} 48. Rf2 {[%clk 0:00:04]}  Kg6 {[%clk 0:00:04]} 49. Kg4 {[%clk 0:00:04]}  f5+ {[%clk 0:00:03]} 50. Kf4 {[%clk 0:00:05]}  Qe4+ {[%clk 0:00:03]} 51. Kg3 {[%clk 0:00:05]}  Qe3+ {[%clk 0:00:03]} 52. Kg2 {[%clk 0:00:05]}  Qe4+ {[%clk 0:00:02]} 53. Kg3 {[%clk 0:00:05]}  Qe3+ {[%clk 0:00:03]} 54. Kg2 {[%clk 0:00:06]}  f4 {[%clk 0:00:03]} 55. Bd6 {[%clk 0:00:04]}  Qe4+ {[%clk 0:00:03]} 56. Kg1 {[%clk 0:00:04]}  Qxd4 {[%clk 0:00:04]} 57. Bxf4 {[%clk 0:00:05]}  Qxb4 {[%clk 0:00:04]} 58. Be5 {[%clk 0:00:05]}  Qe1+ {[%clk 0:00:04]} 0-1


[Site "https://www.chess.com"]

[Event "Titled Tuesday Blitz November 29 Early 2022"]
[White "Ovchinnikov, Vsevolod"]
[Black "Leve, Nitai"]
[WhiteFideId "24176842"]
[BlackFideId "2006898"]
[WhiteElo "2376"]
[BlackElo "2144"]
[Result "1-0"]
[Round "09"]
[TimeControl "180+1"]
[Date "2022.11.30"]
[WhiteClock "0:00:48"]
[BlackClock "0:00:01"]

1. Nf3 {[%clk 0:03:00]}  d5 {[%clk 0:01:39]} 2. c4 {[%clk 0:03:00]}  c6 {[%clk 0:01:39]} 3. b3 {[%clk 0:03:00]}  Nf6 {[%clk 0:01:38]} 4. Bb2 {[%clk 0:03:01]}  Bg4 {[%clk 0:01:39]} 5. d3 {[%clk 0:02:59]}  e6 {[%clk 0:01:39]} 6. Nbd2 {[%clk 0:02:58]}  Nbd7 {[%clk 0:01:39]} 7. h3 {[%clk 0:02:57]}  Bh5 {[%clk 0:01:38]} 8. g4 {[%clk 0:02:56]}  Bg6 {[%clk 0:01:38]} 9. Nh4 {[%clk 0:02:57]}  Bd6 {[%clk 0:01:34]} 10. Bg2 {[%clk 0:02:55]}  Qc7 {[%clk 0:01:27]} 11. a3 {[%clk 0:02:51]}  Ne5 {[%clk 0:01:20]} 12. Qc2 {[%clk 0:02:43]}  h5 {[%clk 0:00:51]} 13. g5 {[%clk 0:02:34]}  Nh7 {[%clk 0:00:35]} 14. Nxg6 {[%clk 0:02:32]}  Nxg6 {[%clk 0:00:34]} 15. h4 {[%clk 0:02:29]}  O-O-O {[%clk 0:00:18]} 16. Bxg7 {[%clk 0:02:17]}  Rhg8 {[%clk 0:00:18]} 17. Bb2 {[%clk 0:02:17]}  Be5 {[%clk 0:00:18]} 18. Bf3 {[%clk 0:02:13]}  f6 {[%clk 0:00:17]} 19. gxf6 {[%clk 0:02:03]}  Nxf6 {[%clk 0:00:16]} 20. O-O-O {[%clk 0:01:56]}  Nf4 {[%clk 0:00:16]} 21. e3 {[%clk 0:01:46]}  Bxb2+ {[%clk 0:00:15]} 22. Kxb2 {[%clk 0:01:45]}  Ng6 {[%clk 0:00:15]} 23. d4 {[%clk 0:01:43]}  Kb8 {[%clk 0:00:11]} 24. Rdg1 {[%clk 0:01:38]}  Ne7 {[%clk 0:00:10]} 25. Rg5 {[%clk 0:01:36]}  Nf5 {[%clk 0:00:03]} 26. cxd5 {[%clk 0:01:29]}  Nxd5 {[%clk 0:00:02]} 27. Bxd5 {[%clk 0:01:19]}  Rxg5 {[%clk 0:00:02]} 28. hxg5 {[%clk 0:01:17]}  Rxd5 {[%clk 0:00:02]} 29. Rxh5 {[%clk 0:01:15]}  a6 {[%clk 0:00:02]} 30. Nf3 {[%clk 0:01:00]}  Ra5 {[%clk 0:00:02]} 31. b4 {[%clk 0:00:59]}  Rb5 {[%clk 0:00:01]} 32. Qc4 {[%clk 0:00:55]}  a5 {[%clk 0:00:01]} 33. Kb3 {[%clk 0:00:52]}  axb4 {[%clk 0:00:01]} 34. axb4 {[%clk 0:00:53]}  Nd6 {[%clk 0:00:01]} 35. Rh8+ {[%clk 0:00:48]} 1-0


[Site "https://www.chess.com"]

[Event "Titled Tuesday Blitz November 29 Early 2022"]
[White "Ozen, Bahadir"]
[Black "Malek, Jan"]
[WhiteFideId "6337058"]
[BlackFideId "21864080"]
[WhiteElo "2503"]
[BlackElo "2255"]
[Result "1-0"]
[Round "09"]
[TimeControl "180+1"]
[Date "2022.11.29"]
[WhiteClock "0:00:19"]
[BlackClock "0:00:02"]

1. g3 {[%clk 0:03:00]}  d5 {[%clk 0:02:57]} 2. Nf3 {[%clk 0:03:00]}  Nc6 {[%clk 0:02:57]} 3. d3 {[%clk 0:02:57]}  e5 {[%clk 0:02:56]} 4. Bg2 {[%clk 0:02:58]}  Nf6 {[%clk 0:02:56]} 5. O-O {[%clk 0:02:57]}  Be7 {[%clk 0:02:56]} 6. c3 {[%clk 0:02:57]}  O-O {[%clk 0:02:56]} 7. Nbd2 {[%clk 0:02:57]}  a5 {[%clk 0:02:56]} 8. Qc2 {[%clk 0:02:56]}  h6 {[%clk 0:02:55]} 9. b3 {[%clk 0:02:55]}  Be6 {[%clk 0:02:55]} 10. a3 {[%clk 0:02:52]}  Re8 {[%clk 0:02:54]} 11. Bb2 {[%clk 0:02:52]}  Bf8 {[%clk 0:02:54]} 12. b4 {[%clk 0:02:41]}  Qd6 {[%clk 0:02:52]} 13. Rfd1 {[%clk 0:02:24]}  b5 {[%clk 0:02:50]} 14. e4 {[%clk 0:02:23]}  Qd7 {[%clk 0:02:41]} 15. bxa5 {[%clk 0:02:06]}  Rxa5 {[%clk 0:02:38]} 16. exd5 {[%clk 0:02:06]}  Nxd5 {[%clk 0:02:26]} 17. c4 {[%clk 0:02:05]}  Nb6 {[%clk 0:02:24]} 18. Bxe5 {[%clk 0:01:52]}  Bf5 {[%clk 0:02:21]} 19. Bc3 {[%clk 0:01:36]}  Bxd3 {[%clk 0:02:19]} 20. Qc1 {[%clk 0:01:36]}  Ra4 {[%clk 0:02:02]} 21. cxb5 {[%clk 0:01:35]}  Bxb5 {[%clk 0:02:02]} 22. Nc4 {[%clk 0:01:19]}  Qe7 {[%clk 0:01:49]} 23. Nxb6 {[%clk 0:01:13]}  cxb6 {[%clk 0:01:50]} 24. Rb1 {[%clk 0:01:11]}  Be2 {[%clk 0:01:40]} 25. Re1 {[%clk 0:01:11]}  Rxa3 {[%clk 0:01:28]} 26. Bb2 {[%clk 0:00:58]}  Rb3 {[%clk 0:00:55]} 27. Nd2 {[%clk 0:00:57]}  Rxb2 {[%clk 0:00:26]} 28. Rxb2 {[%clk 0:00:57]}  Nb4 {[%clk 0:00:25]} 29. Nf1 {[%clk 0:00:37]}  Qf6 {[%clk 0:00:03]} 30. Rbxe2 {[%clk 0:00:36]}  Nd3 {[%clk 0:00:03]} 31. Qd2 {[%clk 0:00:23]}  Rd8 {[%clk 0:00:03]} 32. Re8 {[%clk 0:00:19]}  Nxe1 {[%clk 0:00:02]} 33. Rxd8 {[%clk 0:00:19]}  Nf3+ {[%clk 0:00:01]} 34. Bxf3 {[%clk 0:00:19]}  Qxf3 {[%clk 0:00:02]} 35. Rxf8+ {[%clk 0:00:18]}  Kh7 {[%clk 0:00:02]} 36. Qc2+ {[%clk 0:00:18]}  g6 {[%clk 0:00:02]} 37. Qb2 {[%clk 0:00:19]} 1-0


[Site "https://www.chess.com"]